bitfinex-derivatives/quotes_ETHF0:USTF0_20250503
["timestamp","ask_amount","ask_price","bid_price","bid_amount"]
[1746263969497,4.5465,1827.5,1827.4,9.53726059]
[1746263970292,3.718,1827.5,1827.4,9.53726059]
[1746263972699,5.67121,1827.5,1827.4,3.579]
[1746263972900,5.67121,1827.5,1827.4,4.67317]
[1746263973397,4.5771,1827.5,1827.4,4.67317]
[1746263973793,6.2448,1827.5,1827.4,4.67317]
[1746263976592,3.718,1827.5,1827.4,12.81816059]
[1746263976787,3.718,1827.5,1827.4,13.64156059]
[1746263979101,3.718,1827.5,1827.4,10.43376059]
[1746263979301,3.718,1827.5,1827.4,13.64156059]
[1746263984601,3.718,1827.5,1827.4,19.55756059]
[1746263985194,2.4211,1827.5,1827.4,19.55756059]
[1746263985795,2.4211,1827.5,1827.4,60.35756059]
[1746263989502,1.08845,1827.5,1827.4,65.35756059]
[1746263989706,3.3328,1828.2,1828.1,1.09371]
[1746263989906,6.97219043,1828.2,1828.1,1.09371]
[1746263990106,15.69019043,1828.2,1828.1,1.09371]
[1746263992906,7.35739043,1828.2,1828.1,7.55420059]
[1746263993506,7.35739043,1828.2,1828.1,10.03180059]
[1746263993706,9.02829043,1828.2,1828.1,4.30151]
[1746263994603,7.35739043,1828.2,1828.1,11.12520059]
[1746263994907,3.718,1828.2,1828.1,11.12520059]
[1746263995102,3.718,1828.2,1828.1,11.91530059]
[1746263995806,3.718,1828.2,1828.1,11.12520059]
[1746263996002,3.718,1828.2,1828.1,7.87251]
[1746263996205,3.718,1828.2,1828.1,11.12520059]
[1746263997002,3.718,1828.2,1828.1,7.87251]
[1746263999011,3.718,1828.2,1828.1,11.97480059]
[1746264003616,3.718,1828.2,1828.1,4.30151]
[1746264003818,3.718,1828.2,1828.1,7.90251]
[1746264005015,3.718,1828.2,1828.1,11.15520059]
[1746264005317,3.718,1828.2,1828.1,11.98580059]
[1746264006921,3.718,1828.2,1828.1,11.15520059]
[1746264008412,5.3106,1828.2,1828.1,11.15520059]
[1746264009122,5.3106,1828.2,1828.1,7.90251]
[1746264013420,3.718,1828.2,1828.1,4.69471]
[1746264013620,3.718,1828.2,1828.1,7.90251]
[1746264014021,3.718,1828.2,1828.1,11.15520059]
[1746264014321,5.4156,1828.2,1828.1,11.15520059]
[1746264015214,5.4156,1828.2,1828.1,11.95200059]
[1746264017717,5.4156,1828.2,1828.1,11.15520059]
[1746264018924,5.4156,1828.2,1828.1,7.90251]
[1746264020924,5.4156,1828.2,1828.1,4.69471]
[1746264021727,6.50929,1828.2,1828.1,3.601]
[1746264022224,11.50929,1828.2,1828.1,3.601]
[1746264022925,1.09379,1828.1,1828.0,1.0938]
[1746264023124,6.47149,1828.1,1828.0,1.0938]
[1746264023728,11.47149,1828.1,1828.0,1.0938]
[1746264026127,1.09383,1828.0,1827.9,1.09384]
[1746264026324,4.35813,1828.0,1827.9,1.09384]
[1746264026530,1.09387,1827.9,1827.8,1.09388]
[1746264026728,2.81987,1827.9,1827.8,1.09388]
[1746264027228,6.53787,1827.9,1827.8,1.09388]
[1746264027930,1.09393,1827.8,1827.7,4.69495]
[1746264028128,2.81993,1827.8,1827.7,3.601]
[1746264029228,6.53793,1827.8,1827.7,3.601]
[1746264030331,1.09399,1827.7,1827.6,4.30185]
[1746264030530,4.48859,1827.7,1827.6,4.30185]
[1746264030730,3.718,1827.8,1827.7,1.09399]
[1746264030929,3.718,1827.8,1827.7,11.22328059]
[1746264031130,3.718,1827.8,1827.7,16.22328059]
[1746264034720,3.718,1827.8,1827.7,11.22328059]
[1746264035728,3.718,1827.8,1827.7,16.22328059]
[1746264036030,3.718,1827.8,1827.7,11.22328059]
[1746264045733,4.573,1827.8,1827.7,11.22328059]
[1746264045937,4.573,1827.8,1827.7,10.41128059]
[1746264047234,4.573,1827.8,1827.7,13.61908059]
[1746264048940,4.573,1827.8,1827.7,10.36639]
[1746264049240,4.573,1827.8,1827.7,7.88679]
[1746264053546,3.718,1827.8,1827.7,11.13948059]
[1746264055248,5.4119,1827.8,1827.7,11.13948059]
[1746264058458,5.4119,1827.8,1827.7,7.88679]
[1746264058759,3.718,1827.8,1827.7,11.13948059]
[1746264060162,3.3699,1828.2,1828.1,1.09375]
[1746264060459,7.01321859,1828.2,1828.1,1.09375]
[1746264061060,8.10690859,1828.2,1828.0,4.66379]
[1746264061359,1.5961,1828.1,1828.0,4.66381]
[1746264062161,5.3141,1828.1,1828.0,4.66381]
[1746264064761,1.09381,1828.0,1827.9,3.2078]
[1746264064960,1.09381,1828.0,1827.6,7.29660283]
[1746264064961,4.7954,1828.0,1827.6,8.39063283]
[1746264065264,1.94093,1827.9,1827.7,1.09398]
[1746264065467,0.8009,1827.8,1827.7,1.09398]
[1746264065762,2.3885,1827.8,1827.7,1.09398]
[1746264066262,6.1065,1827.8,1827.7,1.09398]
[1746264066460,1.09399,1827.7,1827.6,7.29660283]
[1746264066666,2.73579,1827.7,1827.6,7.29660283]
[1746264067255,6.45379,1827.7,1827.6,7.29660283]
[1746264068969,11.45379,1827.7,1827.6,7.29660283]
[1746264069269,1.09408,1827.6,1827.4,4.30196]
[1746264069468,0.8073,1827.5,1827.4,4.30196]
[1746264069766,1.90141,1827.5,1827.4,7.55465059]
[1746264069966,3.59861,1827.5,1827.4,7.55465059]
[1746264070265,6.2225,1827.5,1827.4,7.55465059]
[1746264071569,6.2225,1827.5,1827.4,4.34685059]
[1746264071769,7.31661,1827.5,1827.4,1.09416]
[1746264071962,6.2225,1827.5,1827.4,4.34685059]
[1746264072162,6.2225,1827.5,1827.4,6.07575059]
[1746264073173,7.31661,1827.5,1827.4,6.07575059]
[1746264074176,7.31661,1827.5,1827.4,1.09416]
[1746264075070,7.31661,1827.5,1827.4,2.70716]
[1746264076074,7.31661,1827.5,1827.4,1.613]
[1746264076269,7.31661,1827.5,1827.4,1.09417]
[1746264077572,6.2225,1827.5,1827.4,4.34686059]
[1746264077769,6.2225,1827.5,1827.4,6.95396059]
[1746264078874,7.31661,1827.5,1827.4,6.95396059]
[1746264079572,6.2225,1827.5,1827.4,6.95396059]
[1746264081170,7.31661,1827.5,1827.4,6.95396059]
[1746264083667,6.2225,1827.5,1827.4,6.95396059]
[1746264084076,7.0638,1827.5,1827.4,6.95396059]
[1746264084677,7.0638,1827.5,1827.3,7.87099]
[1746264084875,1.7236,1827.4,1827.3,11.12368059]
[1746264085071,5.3666,1827.5,1827.4,4.34686059]
[1746264085375,1.6486,1827.5,1827.4,4.34686059]
[1746264085675,1.6486,1827.5,1827.4,6.08596059]
[1746264085876,3.3722,1827.5,1827.4,6.08596059]
[1746264086174,7.0902,1827.5,1827.4,6.08596059]
[1746264087975,7.0902,1827.5,1827.4,1.09417]
[1746264088376,8.18431,1827.5,1827.4,1.09417]
[1746264094678,1.09417,1827.4,1827.3,9.5562]
[1746264094880,8.18437,1827.5,1827.4,3.25269059]
[1746264095783,8.18437,1827.5,1827.3,9.55619]
[1746264095987,1.664,1827.4,1827.3,9.55619]
[1746264096176,5.382,1827.4,1827.3,9.55619]
[1746264096378,5.382,1827.4,1827.3,12.80888059]
[1746264098084,6.47617,1827.4,1827.3,12.80888059]
[1746264098284,5.382,1827.4,1827.3,12.80888059]
[1746264101885,6.47617,1827.4,1827.3,12.80888059]
[1746264102088,6.47617,1827.4,1827.3,11.71469059]
[1746264102286,6.47617,1827.4,1827.3,10.02949059]
[1746264102882,6.47617,1827.4,1827.3,11.12372059]
[1746264103485,6.47617,1827.4,1827.3,7.87103]
[1746264103686,6.47617,1827.4,1827.3,6.7768]
[1746264104087,6.47617,1827.4,1827.3,3.2078]
[1746264105785,1.09423,1827.3,1827.2,4.30205]
[1746264105984,2.81253,1827.3,1827.2,4.30205]
[1746264106186,6.53053,1827.3,1827.2,4.30205]
[1746264109792,6.53053,1827.3,1827.2,7.55474059]
[1746264110087,3.718,1827.3,1827.2,7.55474059]
[1746264110391,3.718,1827.3,1827.2,8.39164059]
[1746264110591,4.81223,1827.3,1827.2,8.39164059]
[1746264112995,4.81223,1827.3,1827.2,5.18384059]
[1746264113594,4.81223,1827.3,1827.2,8.39164059]
[1746264114689,4.81223,1827.3,1827.2,5.18384059]
[1746264114893,4.81223,1827.3,1827.2,8.39164059]
[1746264116292,4.81223,1827.3,1827.2,6.46049059]
[1746264116493,4.81223,1827.3,1827.2,7.55478059]
[1746264116694,6.53003,1827.3,1827.2,7.55478059]
[1746264117490,6.53003,1827.3,1827.2,4.30209]
[1746264118896,5.4358,1827.3,1827.2,1.09429]
[1746264119297,5.4358,1827.3,1827.2,4.34698059]
[1746264119486,3.718,1827.3,1827.2,4.34698059]
[1746264120498,4.81223,1827.3,1827.2,4.34698059]
[1746264122300,3.718,1827.3,1827.2,4.34698059]
[1746264122505,4.81223,1827.3,1827.2,4.34698059]
[1746264122698,1.09429,1827.2,1827.1,1.663]
[1746264122898,3.50829,1827.2,1827.1,6.01004059]
[1746264123205,7.22629,1827.2,1827.1,6.01004059]
[1746264123399,6.132,1827.2,1827.1,6.01004059]
[1746264123596,7.22629,1827.2,1827.1,3.25269059]
[1746264125299,8.04359,1827.2,1827.1,3.25269059]
[1746264126601,8.04359,1827.2,1827.1,4.34704059]
[1746264128101,8.04359,1827.2,1827.1,3.25269059]
[1746264128603,8.04359,1827.2,1827.1,4.34704059]
[1746264129206,8.04359,1827.2,1827.1,3.25269059]
[1746264133008,12.38473155,1827.2,1827.1,3.25269059]
[1746264134694,1.09435,1827.1,1827.0,7.28846]
[1746264134899,2.78475,1827.1,1827.0,7.28846]
[1746264135099,6.50275,1827.1,1827.0,10.54115059]
[1746264140511,6.50275,1827.1,1827.0,7.28846]
[1746264140808,6.50275,1827.1,1827.0,10.54115059]
[1746264144908,4.81235,1827.1,1827.0,10.54115059]
[1746264156214,4.81235,1827.1,1827.0,7.28846]
[1746264156512,4.81235,1827.1,1827.0,6.96615059]
[1746264167815,3.718,1827.1,1827.0,6.96615059]
[1746264172625,3.718,1827.1,1827.0,3.71346]
[1746264172827,3.718,1827.1,1827.0,6.96615059]
[1746264176823,3.718,1827.1,1827.0,11.96615059]
[1746264177226,3.64331859,1827.2,1827.1,1.09435]
[1746264177432,3.64331859,1827.2,1827.1,9.27744059]
[1746264181935,5.46497789,1827.3,1827.2,1.09429]
[1746264182135,1.597,1827.5,1827.4,1.09417]
[1746264183139,5.315,1827.5,1827.4,1.09417]
[1746264185041,6.40911,1827.5,1827.4,1.09417]
[1746264185836,1.09419,1827.4,1827.3,1.09419]
[1746264186042,2.4991,1827.4,1827.3,1.09419]
[1746264186339,6.2171,1827.4,1827.3,1.09419]
[1746264191144,7.31127,1827.4,1827.3,1.09419]
[1746264200945,8.17537,1827.4,1827.3,1.09419]
[1746264202145,3.718,1827.4,1827.3,1.09419]
[1746264202447,3.718,1827.4,1827.3,2.81989]
[1746264202749,6.233,1827.4,1827.3,2.81989]
[1746264202942,6.233,1827.4,1827.3,3.69299]
[1746264203245,1.09423,1827.3,1827.2,4.60029]
[1746264203443,3.55063,1827.3,1827.2,4.60029]
[1746264204346,7.26863,1827.3,1827.2,4.60029]
[1746264206648,7.26863,1827.3,1827.2,1.09429]
[1746264211047,10.91194859,1827.3,1827.2,1.09429]
[1746264213945,1.09435,1827.1,1827.0,3.495]
[1746264214252,4.81235,1827.1,1827.0,4.58941]
[1746264214654,6.52055,1827.1,1827.0,4.58941]
[1746264218052,6.52055,1827.1,1827.0,3.495]
[1746264218454,1.09441,1827.0,1826.9,1.09444]
[1746264218654,4.48471,1827.0,1826.9,1.09444]
[1746264219353,8.20271,1827.0,1826.9,1.09444]
[1746264220855,7.1083,1827.0,1826.9,1.09444]
[1746264222857,6.3016,1827.0,1826.9,4.34713059]
[1746264223051,6.3016,1827.0,1826.9,5.15583059]
[1746264225361,7.39601,1827.0,1826.9,5.15583059]
[1746264226061,6.3016,1827.0,1826.9,5.15583059]
[1746264226358,3.718,1827.0,1826.9,5.15583059]
[1746264228649,3.718,1827.0,1826.9,6.85113059]
[1746264232164,3.718,1827.0,1826.9,11.85113059]
[1746264234067,3.718,1827.0,1826.9,6.85113059]
[1746264234268,3.64331859,1827.2,1827.1,1.09435]
[1746264234472,3.64331859,1827.2,1827.1,7.84204059]
[1746264234968,3.64331859,1827.2,1827.1,10.28324059]
[1746264235166,7.36131859,1827.2,1827.1,10.28324059]
[1746264236470,3.718,1827.2,1827.1,10.28324059]
[1746264254274,5.7369,1827.5,1827.4,1.09417]
[1746264254482,5.14641,1827.5,1827.4,1.09417]
[1746264254778,10.14641,1827.5,1827.4,1.09417]
[1746264255283,1.09419,1827.4,1827.3,1.0942]
[1746264255581,8.86446,1827.5,1827.4,1.09417]
[1746264255782,7.7703,1827.5,1827.3,1.0942]
[1746264255973,7.7703,1827.5,1827.3,1.09418]
[1746264256172,12.7703,1827.5,1827.3,1.09418]
[1746264256374,13.86446,1827.5,1827.4,1.09417]
[1746264256682,7.7703,1827.5,1827.4,1.09417]
[1746264256880,12.7703,1827.5,1827.4,1.09417]
[1746264257082,7.7703,1827.5,1827.4,1.09417]
[1746264263584,4.5625,1827.5,1827.4,1.09417]
[1746264267989,6.1936,1827.5,1827.4,1.09417]
[1746264269789,7.28771,1827.5,1827.4,1.09417]
[1746264269987,1.09421,1827.4,1827.3,1.09419]
[1746264270189,1.09427,1827.3,1827.2,4.34694059]
[1746264270585,2.68987,1827.3,1827.2,1.09425]
[1746264271189,6.40787,1827.3,1827.2,1.09425]
[1746264272789,6.40787,1827.3,1827.2,4.34694059]
[1746264273086,1.09429,1827.2,1827.1,4.30215]
[1746264273290,2.4172,1827.2,1826.9,6.7018]
[1746264273491,1.94748,1827.1,1827.0,4.34707059]
[1746264273792,1.09441,1827.0,1826.9,11.04892059]
[1746264273992,2.70371,1827.0,1826.9,11.04892059]
[1746264274190,6.42171,1827.0,1826.9,11.04892059]
[1746264274593,5.3273,1827.0,1826.9,11.04892059]
[1746264275391,6.42171,1827.0,1826.9,11.04892059]
[1746264275594,5.3273,1827.0,1826.9,11.04892059]
[1746264279699,5.3273,1827.0,1826.9,7.84112059]
[1746264281200,3.718,1827.0,1826.9,16.04892059]
[1746264282095,3.64331859,1827.1,1827.0,1.09441]
[1746264282295,3.64331859,1827.1,1827.0,7.73330059]
[1746264282488,3.64331859,1827.1,1827.0,12.73330059]
[1746264286913,10.56434859,1827.7,1827.5,1.09406]
[1746264287411,7.35654859,1827.7,1827.5,1.09406]
[1746264287611,7.35654859,1827.7,1827.6,1.09405]
[1746264287911,12.35654859,1827.7,1827.6,1.09405]
[1746264288110,11.07454859,1827.7,1827.6,1.09405]
[1746264290414,7.43123,1827.7,1827.6,1.09405]
[1746264294118,11.07454859,1827.7,1827.6,1.09405]
[1746264302215,14.28234859,1827.7,1827.6,1.09405]
[1746264304827,10.63903,1827.7,1827.6,1.09405]
[1746264306720,10.63903,1827.7,1827.6,4.34674059]
[1746264317934,7.43123,1827.7,1827.6,4.34674059]
[1746264318235,10.63903,1827.7,1827.6,4.34674059]
[1746264318432,10.63903,1827.7,1827.6,1.09405]
[1746264322138,7.43123,1827.7,1827.6,1.09405]
[1746264322431,10.63903,1827.7,1827.6,1.09405]
[1746264322829,10.63903,1827.7,1827.6,4.34674059]
[1746264323035,10.63903,1827.7,1827.6,3.25269059]
[1746264323338,1.09405,1827.6,1827.5,1.6389]
[1746264323528,2.82505,1827.6,1827.5,1.6389]
[1746264323730,3.69395,1827.6,1827.5,4.89159059]
[1746264324137,7.41195,1827.6,1827.5,4.89159059]
[1746264324325,7.41195,1827.6,1827.5,3.25269059]
[1746264324725,7.41195,1827.6,1827.5,4.34680059]
[1746264326638,7.41195,1827.6,1827.5,6.01500059]
[1746264326832,13.57464145,1827.6,1827.5,6.01500059]
[1746264328535,9.88069145,1827.6,1827.5,6.01500059]
[1746264328737,9.88069145,1827.6,1827.5,11.83680059]
[1746264329730,9.88069145,1827.6,1827.5,6.83680059]
[1746264331439,3.718,1827.6,1827.5,6.83680059]
[1746264343151,3.65337307,1827.8,1827.7,1.09399]
[1746264343352,3.65337307,1827.8,1827.7,7.83568059]
[1746264343846,3.65337307,1827.8,1827.7,10.36078059]
[1746264344143,7.37137307,1827.8,1827.7,10.36078059]
[1746264344544,3.718,1827.8,1827.7,10.36078059]
[1746264344947,3.718,1827.8,1827.7,51.16078059]
[1746264347156,3.65337307,1827.9,1827.8,1.09393]
[1746264347454,3.65337307,1827.9,1827.8,6.88272059]
[1746264347955,3.2078,1828.1,1828.0,1.09381]
[1746264348256,5.46497789,1828.3,1828.2,4.34638059]
[1746264348257,3.99015096,1828.3,1828.2,4.34638059]
[1746264348457,0.71525096,1828.3,1828.2,48.35418059]
[1746264348658,0.71525096,1828.3,1828.2,53.35418059]
[1746264348855,0.71525096,1828.3,1828.2,55.88728059]
[1746264349059,9.6e-07,1828.3,1828.2,50.88728059]
[1746264349559,9.6e-07,1828.3,1828.2,51.31697188]
[1746264349952,9.6e-07,1828.3,1828.2,50.88728059]
[1746264351156,1.6294,1828.4,1828.3,1.09363]
[1746264351354,1.6294,1828.4,1828.3,9.49402059]
[1746264351958,1.6294,1828.4,1828.3,12.70182059]
[1746264352161,5.3474,1828.4,1828.3,12.70182059]
[1746264352854,5.3474,1828.4,1828.3,4.30143]
[1746264353158,5.3474,1828.4,1828.3,7.78943]
[1746264353752,5.3474,1828.4,1828.3,11.04212059]
[1746264353953,3.718,1828.4,1828.3,12.76682059]
[1746264354653,5.4266,1828.4,1828.3,12.76682059]
[1746264355161,5.4266,1828.4,1828.3,7.78943]
[1746264357550,3.718,1828.4,1828.3,11.04212059]
[1746264357850,3.718,1828.4,1828.3,12.68372059]
[1746264361165,3.718,1828.4,1828.3,9.43103]
[1746264366869,3.72378186,1828.4,1828.3,9.43103]
[1746264367369,0.00578186,1828.4,1828.3,9.43103]
[1746264373577,0.00578186,1828.4,1828.3,6.22323]
[1746264373778,0.00578186,1828.4,1828.3,9.43103]
[1746264377578,0.00578186,1828.4,1828.3,7.78943]
[1746264378079,0.00578186,1828.4,1828.3,48.58943]
[1746264378282,3.72378186,1828.4,1828.3,48.58943]
[1746264379183,5.43008186,1828.4,1828.3,48.58943]
[1746264380484,3.72378186,1828.4,1828.3,48.58943]
[1746264381078,5.30918186,1828.4,1828.3,48.58943]
[1746264381281,1.59118186,1828.4,1828.3,50.22873]
[1746264381585,2.45578186,1828.4,1828.3,48.58943]
[1746264381786,1.59118186,1828.4,1828.3,48.58943]
[1746264381983,0.00578186,1828.4,1828.3,48.58943]
[1746264382288,0.00578186,1828.4,1828.3,50.22873]
[1746264384384,0.00578186,1828.4,1828.3,47.02093]
[1746264384587,0.00578186,1828.4,1828.3,50.22873]
[1746264385484,1.86e-06,1828.4,1828.3,50.22873]
[1746264386079,0.8646,1828.9,1828.8,1.09333]
[1746264386285,0.8646,1828.9,1828.8,4.58133]
[1746264386678,2.4603,1828.9,1828.8,4.58133]
[1746264387186,6.1783,1828.9,1828.8,4.58133]
[1746264403899,7.27158,1828.9,1828.8,4.58133]
[1746264404199,6.1783,1828.9,1828.8,4.58133]
[1746264406708,7.27158,1828.9,1828.8,4.58133]
[1746264406905,6.1783,1828.9,1828.8,4.58133]
[1746264409398,5.3137,1828.9,1828.8,4.58133]
[1746264409706,5.3137,1828.9,1828.8,6.97303]
[1746264413507,3.718,1828.9,1828.8,6.97303]
[1746264415707,5.3264,1828.9,1828.8,6.97303]
[1746264418410,5.3264,1828.9,1828.8,10.18083]
[1746264422613,5.3264,1828.9,1828.8,6.97303]
[1746264422810,5.3264,1828.9,1828.8,10.18083]
[1746264424414,5.3264,1828.9,1828.8,6.97303]
[1746264424712,5.3264,1828.9,1828.8,10.18083]
[1746264425514,3.718,1828.9,1828.8,10.18083]
[1746264427115,3.718,1828.9,1828.8,6.97303]
[1746264427313,3.718,1828.9,1828.8,10.18083]
[1746264428506,5.3091,1828.9,1828.8,7.78913]
[1746264428706,5.3091,1828.9,1828.8,4.58133]
[1746264430907,6.40238,1828.9,1828.8,4.58133]
[1746264431714,1.09336,1828.8,1828.7,1.09336]
[1746264431918,2.4467,1828.8,1828.7,4.58236]
[1746264432213,6.1647,1828.8,1828.7,4.58236]
[1746264432616,6.1647,1828.8,1828.6,4.0269]
[1746264432617,1.09345,1828.6,1828.5,10.78412368]
[1746264432810,4.30125,1828.6,1828.5,10.78412368]
[1746264433112,8.01925,1828.6,1828.5,10.78412368]
[1746264433314,6.46565,1828.6,1828.5,10.78412368]
[1746264433618,6.46565,1828.6,1828.5,11.87763368]
[1746264433817,6.46565,1828.6,1828.5,10.78412368]
[1746264434209,6.46565,1828.6,1828.5,11.87763368]
[1746264434917,6.46565,1828.6,1828.5,10.78412368]
[1746264435921,6.46565,1828.6,1828.5,11.87763368]
[1746264436419,6.46565,1828.6,1828.5,4.58251]
[1746264437320,5.3722,1828.6,1828.5,4.58251]
[1746264437721,6.46565,1828.6,1828.5,4.58251]
[1746264445722,6.46565,1828.6,1828.5,3.489]
[1746264450821,1.09357,1828.4,1828.3,3.2078]
[1746264451117,1.09367,1828.3,1828.2,1.09367]
[1746264451320,3.57927,1828.3,1828.2,4.34636059]
[1746264451522,3.57927,1828.3,1828.2,1.09367]
[1746264452230,7.29727,1828.3,1828.2,1.09367]
[1746264455032,1.09369,1828.2,1828.1,7.79151]
[1746264455327,2.71619,1828.2,1828.1,7.79151]
[1746264455531,2.71619,1828.2,1828.1,11.04420059]
[1746264456130,6.43419,1828.2,1828.1,11.04420059]
[1746264461132,6.43419,1828.2,1828.1,7.83640059]
[1746264462536,4.81169,1828.2,1828.1,7.83640059]
[1746264462743,4.81169,1828.2,1828.1,8.69560059]
[1746264463137,4.81169,1828.2,1828.1,11.90340059]
[1746264463546,3.718,1828.2,1828.1,11.90340059]
[1746264464344,4.81169,1828.2,1828.1,11.90340059]
[1746264465148,4.81169,1828.2,1828.1,11.04420059]
[1746264465939,4.81169,1828.2,1828.1,12.66650059]
[1746264466249,4.81169,1828.2,1828.1,9.45874059]
[1746264467541,4.81169,1828.2,1828.1,11.57279059]
[1746264467748,4.81169,1828.2,1828.1,12.66654059]
[1746264468047,4.81169,1828.2,1828.1,11.57279059]
[1746264469746,4.81169,1828.2,1828.1,12.66654059]
[1746264476553,4.81169,1828.2,1828.1,11.57279059]
[1746264477850,5.63459,1828.2,1828.1,11.57279059]
[1746264478753,5.63459,1828.2,1828.1,8.3201]
[1746264479754,5.63459,1828.2,1828.1,11.57279059]
[1746264480756,4.81169,1828.2,1828.1,12.66654059]
[1746264481956,4.81169,1828.2,1828.1,9.95049059]
[1746264482157,6.49959,1828.2,1828.1,9.95049059]
[1746264482655,6.49959,1828.2,1828.1,11.61169059]
[1746264486151,6.49959,1828.2,1828.1,12.70544059]
[1746264487155,6.49959,1828.2,1828.1,9.49764059]
[1746264489863,4.81169,1828.2,1828.1,9.49764059]
[1746264490762,4.81169,1828.2,1828.1,6.00764059]
[1746264492660,4.81169,1828.2,1828.1,9.21544059]
[1746264494266,7.29449,1828.2,1828.1,9.21544059]
[1746264495463,7.29449,1828.2,1828.1,8.12169059]
[1746264496255,7.29449,1828.2,1828.1,4.91389059]
[1746264496460,7.29449,1828.2,1828.1,8.12169059]
[1746264496866,7.29449,1828.2,1828.1,9.21544059]
[1746264497367,7.29449,1828.2,1828.1,8.12169059]
[1746264497867,7.29449,1828.2,1828.1,6.46049059]
[1746264498068,8.14389,1828.2,1828.1,3.2078]
[1746264498567,8.14389,1828.2,1828.1,4.9453]
[1746264498767,8.14389,1828.2,1828.1,8.19799059]
[1746264501162,8.14389,1828.2,1828.1,4.99019059]
[1746264501969,11.79552387,1828.2,1828.1,4.99019059]
[1746264504474,11.79552387,1828.2,1828.1,1.7375]
[1746264504770,11.79552387,1828.2,1828.1,4.99019059]
[1746264506763,11.79552387,1828.2,1828.1,3.25269059]
[1746264509577,12.49293744,1828.2,1828.1,3.25269059]
[1746264512780,1.09375,1828.1,1828.0,8.3279]
[1746264513072,6.52655,1828.1,1828.0,8.3279]
[1746264513277,6.52655,1828.1,1828.0,11.58059059]
[1746264513677,6.52655,1828.1,1828.0,6.46049059]
[1746264515380,6.52655,1828.1,1828.0,8.12809059]
[1746264519078,6.52655,1828.1,1828.0,9.22190059]
[1746264519373,6.52655,1828.1,1828.0,4.92029059]
[1746264525083,6.52655,1828.1,1828.0,1.6676]
[1746264525283,1.09381,1828.0,1827.9,3.487]
[1746264525484,3.49621,1828.0,1827.9,6.73969059]
[1746264525685,1.09387,1827.9,1827.8,15.73772132]
[1746264525882,2.68467,1827.9,1827.8,15.73772132]
[1746264526188,7.23587,1827.9,1827.8,18.99041191]
[1746264528578,7.23587,1827.9,1827.8,20.08434191]
[1746264528788,4.81187,1827.9,1827.8,20.08434191]
[1746264529081,4.81187,1827.9,1827.8,16.87654191]
[1746264529384,4.81187,1827.9,1827.8,15.78261191]
[1746264530984,8.46350387,1827.9,1827.8,8.48299059]
[1746264531186,10.21340387,1827.9,1827.8,8.48299059]
[1746264531480,10.21340387,1827.9,1827.8,3.25269059]
[1746264532281,1.09393,1827.8,1827.7,3.486]
[1746264532479,4.51703,1827.8,1827.7,3.486]
[1746264532876,1.09399,1827.7,1827.6,3.2078]
[1746264533082,6.41119,1827.7,1827.6,6.46049059]
[1746264533479,1.09405,1827.6,1827.5,10.78562132]
[1746264533684,2.69325,1827.6,1827.5,10.78562132]
[1746264534199,6.41125,1827.6,1827.5,10.78562132]
[1746264534997,6.41125,1827.6,1827.5,3.486]
[1746264537301,6.41125,1827.6,1827.5,5.1496]
[1746264537603,6.41125,1827.6,1827.5,6.24371]
[1746264537802,6.41125,1827.6,1827.5,5.1496]
[1746264539202,6.41125,1827.6,1827.5,6.24371]
[1746264539405,7.22055,1827.6,1827.5,5.1496]
[1746264544305,7.22055,1827.6,1827.5,6.24371]
[1746264544505,7.22055,1827.6,1827.5,5.1496]
[1746264545700,7.22055,1827.6,1827.5,8.40229059]
[1746264546808,7.22055,1827.6,1827.5,9.49640059]
[1746264548405,7.22055,1827.6,1827.5,3.25269059]
[1746264548605,7.22055,1827.6,1827.5,4.34680059]
[1746264548802,1.09411,1827.5,1827.4,0.8388]
[1746264549107,7.39631,1827.5,1827.4,4.09149059]
[1746264549605,7.39631,1827.5,1827.4,5.73419059]
[1746264549800,7.39631,1827.5,1827.4,6.82836059]
[1746264552513,7.39631,1827.5,1827.4,5.73419059]
[1746264553007,6.3022,1827.5,1827.2,49.98]
[1746264553214,1.09423,1827.3,1827.2,5.203]
[1746264553710,1.09423,1827.3,1827.2,8.45569059]
[1746264554112,4.81223,1827.3,1827.2,8.45569059]
[1746264554413,4.81223,1827.3,1827.2,9.54998059]
[1746264555715,4.81223,1827.3,1827.2,8.45569059]
[1746264556019,1.09435,1827.1,1827.0,4.30221]
[1746264556213,1.09435,1827.1,1827.0,9.22630059]
[1746264556512,1.09435,1827.1,1827.0,6.01850059]
[1746264556714,2.77325,1827.1,1827.0,6.01850059]
[1746264556904,1.6789,1827.1,1827.0,6.01850059]
[1746264557310,5.3969,1827.1,1827.0,6.01850059]
[1746264557510,6.49125,1827.1,1827.0,6.01850059]
[1746264558617,5.3969,1827.1,1827.0,6.01850059]
[1746264561110,1.09441,1827.0,1826.9,0.8443]
[1746264561318,3.63261,1827.0,1826.9,0.8443]
[1746264561505,4.81239,1827.1,1827.0,1.09441]
[1746264561715,4.81239,1827.1,1827.0,4.34710059]
[1746264561910,4.81239,1827.1,1827.0,1.601]
[1746264562111,4.81239,1827.1,1826.9,2.73793]
[1746264562112,1.09441,1827.0,1826.9,2.73793]
[1746264562313,3.62731,1827.0,1826.9,4.33893]
[1746264562510,3.62731,1827.0,1826.9,7.59162059]
[1746264562712,3.62731,1827.0,1826.7,3.486]
[1746264562912,3.62731,1827.0,1826.9,1.09447]
[1746264563209,7.34531,1827.0,1826.9,1.09447]
[1746264566516,1.09447,1826.9,1826.8,2.4247]
[1746264566721,2.84227,1826.9,1826.8,5.67739059]
[1746264567121,6.56027,1826.9,1826.8,5.67739059]
[1746264568023,6.56027,1826.9,1826.8,6.77192059]
[1746264568323,6.56027,1826.9,1826.8,5.67739059]
[1746264568721,6.56027,1826.9,1826.8,6.77192059]
[1746264572226,5.4658,1826.9,1826.8,6.77192059]
[1746264572419,6.56027,1826.9,1826.8,6.77192059]
[1746264573325,3.718,1826.9,1826.8,6.77192059]